fUSD/lending_fUSD_20260510
["ID","MTS","AMOUNT","RATE_DAILY","PERIOD"]
[421938619,1778353840000,-507.16189665,0.00022022,2]
[421938624,1778353840000,-507.16189665,0.00022172,2]
[421938611,1778353840000,-250.0,0.00022,2]
[421938617,1778353840000,-3539.0,0.00022018,2]
[421938613,1778353840000,-150.0,0.00022018,2]
[421938679,1778353841000,-500.0,0.00022521,2]
[421938677,1778353841000,-500.0,0.00022521,2]
[421938675,1778353841000,-500.0,0.00022521,2]
[421938673,1778353841000,-500.0,0.00022521,2]
[421938671,1778353841000,-500.0,0.00022521,2]
[421938667,1778353841000,-500.0,0.00022521,2]
[421938653,1778353841000,-500.0,0.00022521,2]
[421938660,1778353841000,-500.0,0.00022521,2]
[421938658,1778353841000,-500.0,0.00022521,2]
[421938655,1778353841000,-409.70574832,0.00022521,2]
[421938680,1778353841000,-500.0,0.00022521,2]
[421938665,1778353841000,-500.0,0.00022521,2]
[421938651,1778353841000,-507.16189665,0.00022488,2]
[421938669,1778353841000,-500.0,0.00022521,2]
[421938682,1778353841000,-500.0,0.00022521,2]
[421938663,1778353841000,-500.0,0.00022521,2]
[421938684,1778353841000,-500.0,0.00022521,2]
[421938712,1778353841000,-23658.35940073,0.00022542,2]
[421938710,1778353841000,-507.16189665,0.00022522,2]
[421938708,1778353841000,-500.0,0.00022521,2]
[421938706,1778353841000,-500.0,0.00022521,2]
[421938715,1778353841000,-390.31378116,0.00022542,2]
[421938705,1778353841000,-500.0,0.00022521,2]
[421938703,1778353841000,-500.0,0.00022521,2]
[421938688,1778353841000,-314.83513818,0.00022521,2]
[421938699,1778353841000,-500.0,0.00022521,2]
[421938697,1778353841000,-500.0,0.00022521,2]
[421938693,1778353841000,-500.0,0.00022521,2]
[421938701,1778353841000,-500.0,0.00022521,2]
[421938690,1778353841000,-500.0,0.00022521,2]
[421938686,1778353841000,-500.0,0.00022521,2]
[421938695,1778353841000,-500.0,0.00022521,2]
[421938866,1778353845000,-408.50698965,0.00022542,2]
[421938867,1778353846000,-23018.43175523,0.00022542,2]
[421938869,1778353846000,-1586.05678887,0.00022542,2]
[421938868,1778353846000,-5501.75875254,0.00022542,2]
[421939161,1778353927000,-10000.01,0.00015591,2]
[421939163,1778353972000,-9845.5186,0.00015591,2]
[421939162,1778353972000,-10000.01,0.00015591,2]
[421939166,1778354447000,-883.28896916,0.0002,2]
[421939172,1778354481000,-406.0,0.0002,2]
[421939170,1778354481000,277.15,0.00027068,120]
[421939171,1778354481000,-406.0,0.0002,2]
[421939169,1778354481000,277.15,0.00026493,120]
[421939168,1778354481000,277.15,0.00025918,120]
[421939167,1778354481000,277.15,0.00025342,120]
[421939174,1778354482000,-398.0,0.0002,2]
[421939175,1778354482000,-3.0,0.0002,2]
[421939173,1778354482000,-5.0,0.0002,2]
[421939176,1778354568000,238.92,0.00027397,120]
[421939177,1778354922000,-208.0536425,0.00019974,2]
[421939181,1778354956000,-1.0,0.00019983,2]
[421939179,1778354956000,-151.0,0.00019983,2]
[421939178,1778354956000,-151.0,0.00019978,2]
[421939180,1778354956000,-150.0,0.00019983,2]
[421939182,1778354975000,6730.9697,0.00027389,120]
[421939187,1778355032000,-140.05642929,0.00019983,2]
[421939186,1778355032000,-150.0,0.00019983,2]
[421939189,1778355032000,-150.0,0.00019987,2]
[421939188,1778355032000,-10.94357071,0.00019983,2]
[421939199,1778355032000,-151.0,0.00019996,2]
[421939190,1778355032000,-152.0,0.00019987,2]
[421939191,1778355032000,-150.0,0.00019987,2]
[421939198,1778355032000,-150.0,0.00019996,2]
[421939192,1778355032000,-151.0,0.00019987,2]
[421939195,1778355032000,-151.0,0.00019992,2]
[421939196,1778355032000,-152.0,0.00019992,2]
[421939202,1778355032000,-262.05304244,0.0002,2]
[421939203,1778355032000,-91.26695756,0.0002,2]
[421939201,1778355032000,-365.94695756,0.0002,2]
[421939204,1778355032000,-589.72680202,0.0002,2]
[421939194,1778355032000,-150.0,0.00019992,2]
[421939193,1778355032000,-152.0,0.00019992,2]
[421939197,1778355032000,-151.0,0.00019996,2]
[421939200,1778355032000,-151.0,0.00019996,2]
[421939262,1778355038000,-193.00624042,0.0002,2]
[421939270,1778355038000,-413.0,0.0002,2]
[421939267,1778355038000,-409.0,0.0002,2]
[421939264,1778355038000,-399.0,0.0002,2]
[421939265,1778355038000,-404.0,0.0002,2]
[421939263,1778355038000,-213.0,0.0002,2]
[421939269,1778355038000,-250.41021394,0.0002,2]
[421939266,1778355038000,-398.0,0.0002,2]
[421939276,1778355038000,-405.0,0.0002,2]
[421939274,1778355038000,-157.85491597,0.0002,2]
[421939271,1778355038000,-408.0,0.0002,2]
[421939272,1778355038000,-400.0,0.0002,2]
[421939273,1778355038000,-411.0,0.0002,2]
[421939277,1778355038000,-17.455758,0.0002,2]
[421939275,1778355038000,-247.14508403,0.0002,2]
[421939278,1778355038000,-388.544242,0.0002,2]
[421939279,1778355038000,-141.23620875,0.0002,2]
[421939268,1778355038000,-160.58978606,0.0002,2]
[421939288,1778355040000,-412.0,0.0002,2]
[421939287,1778355040000,-255.76379125,0.0002,2]
[421939290,1778355040000,-206.50181617,0.0002,2]
[421939289,1778355040000,-412.0,0.0002,2]
[421939323,1778355043000,-874.0,0.00021,2]
[421939324,1778355043000,-213.0,0.00021,2]
[421939319,1778355043000,-411.0,0.00020609,2]
[421939318,1778355043000,-397.0,0.00020609,2]
[421939325,1778355043000,-406.0,0.00021,2]
[421939328,1778355043000,-1130.5,0.00021596,2]
[421939329,1778355043000,-6277.5295517,0.00021677,2]
[421939330,1778355043000,-628.0,0.00022,2]
[421939335,1778355043000,-331.48351382,0.00022441,2]
[421939333,1778355043000,-208.18425728,0.00022407,2]
[421939332,1778355043000,-213.0,0.00022,2]
[421939334,1778355043000,-500.0,0.00022441,2]
[421939336,1778355043000,-500.0,0.00022441,2]
[421939320,1778355043000,-405.0,0.00020609,2]
[421939338,1778355043000,-500.0,0.00022441,2]
[421939339,1778355043000,-500.0,0.00022441,2]
[421939337,1778355043000,-500.0,0.00022441,2]
[421939331,1778355043000,-874.0,0.00022,2]
[421939317,1778355043000,-402.0,0.00020609,2]
[421939312,1778355043000,-70810.2367267,0.00020609,2]
[421939321,1778355043000,-713.3,0.00021,2]
[421939301,1778355043000,-230.25489917,0.0002,2]
[421939300,1778355043000,-204.49818383,0.0002,2]
[421939302,1778355043000,-182.74510083,0.0002,2]
[421939303,1778355043000,-398.0,0.0002,2]
[421939304,1778355043000,-1071.5718422,0.00020447,2]
[421939306,1778355043000,-1013.05866855,0.00020609,2]
[421939305,1778355043000,-23328.7127042,0.00020458,2]
[421939307,1778355043000,-1304.33267885,0.00020609,2]
[421939322,1778355043000,-628.0,0.00021,2]
[421939311,1778355043000,-1001.400244,0.00020609,2]
[421939309,1778355043000,-1718.45258,0.00020609,2]
[421939310,1778355043000,-26683.6286388,0.00020609,2]
[421939313,1778355043000,-315.0,0.00020609,2]
[421939308,1778355043000,-10212.1792647,0.00020609,2]
[421939316,1778355043000,-412.0,0.00020609,2]
[421939327,1778355043000,-150.0,0.00021,2]
[421939326,1778355043000,-400.0,0.00021,2]
[421939315,1778355043000,-411.0,0.00020609,2]
[421939314,1778355043000,-405.0,0.00020609,2]
[421939340,1778355043000,-500.0,0.00022441,2]
[421939353,1778355043000,-507.16189665,0.00022696,2]
[421939341,1778355043000,-500.0,0.00022441,2]
[421939362,1778355043000,-3539.0,0.00022929,2]
[421939378,1778355043000,-893.06081706,0.00023958,2]
[421939367,1778355043000,-213.0,0.00023,2]
[421939370,1778355043000,-507.16189665,0.00023111,2]
[421939369,1778355043000,-507.16189665,0.00023078,2]
[421939371,1778355043000,-507.16189665,0.00023225,2]
[421939368,1778355043000,-507.16189665,0.00023032,2]
[421939373,1778355043000,-893.06081706,0.00023546,2]
[421939372,1778355043000,-5529.0,0.000234,5]
[421939379,1778355043000,-628.0,0.00024,2]
[421939376,1778355043000,-893.06081706,0.00023842,2]
[421939374,1778355043000,-619.0,0.000237,2]
[421939377,1778355043000,-37022.72,0.00023892,2]
[421939381,1778355043000,-213.0,0.00024,2]
[421939380,1778355043000,-874.0,0.00024,2]
[421939382,1778355043000,-2785.79764144,0.00024027,2]
[421939342,1778355043000,-500.0,0.00022441,2]
[421939361,1778355043000,-6047.0,0.00022929,2]
[421939364,1778355043000,-647.5189449,0.00023,7]
[421939375,1778355043000,-5000.0,0.00023728,2]
[421939360,1778355043000,-1222.0,0.00022929,2]
[421939359,1778355043000,-507.16189665,0.00022893,2]
[421939343,1778355043000,-127866.5449,0.00022442,2]
[421939345,1778355043000,-2781.94463715,0.00022594,2]
[421939352,1778355043000,-507.16189665,0.00022685,2]
[421939349,1778355043000,-507.16189665,0.00022655,2]
[421939350,1778355043000,-507.16189665,0.00022655,2]
[421939346,1778355043000,-507.16189665,0.00022604,2]
[421939348,1778355043000,-507.16189665,0.00022631,2]
[421939347,1778355043000,-507.16189665,0.0002263,2]
[421939344,1778355043000,-500.0,0.00022473,2]
[421939354,1778355043000,-507.16189665,0.00022713,2]
[421939355,1778355043000,-507.16189665,0.00022739,2]
[421939366,1778355043000,-874.0,0.00023,2]
[421939365,1778355043000,-628.0,0.00023,2]
[421939356,1778355043000,-507.16189665,0.00022827,2]
[421939357,1778355043000,-507.16189665,0.00022829,2]
[421939358,1778355043000,-2781.94463715,0.00022843,2]
[421939351,1778355043000,-507.16189665,0.00022674,2]
[421939363,1778355043000,-507.16189665,0.0002293,2]
[421939402,1778355044000,-2447.0,0.00024946,2]
[421939396,1778355044000,-1000.0,0.00024658,2]
[421939398,1778355044000,-893.06081706,0.00024665,2]
[421939397,1778355044000,-154.59,0.00024658,2]
[421939401,1778355044000,-154.59,0.00024868,7]
[421939407,1778355044000,-154.59,0.00025079,30]
[421939405,1778355044000,-876.0,0.00025,2]
[421939404,1778355044000,-635.0,0.00025,2]
[421939412,1778355044000,-1222.0,0.00025929,2]
[421939394,1778355044000,-893.06081706,0.00024507,2]
[421939409,1778355044000,-154.59,0.000255,7]
[421939400,1778355044000,-893.06081706,0.0002472,2]
[421939399,1778355044000,-893.06081706,0.00024673,2]
[421939385,1778355044000,-893.06081706,0.00024107,2]
[421939392,1778355044000,-570.0,0.00024397,2]
[421939403,1778355044000,-570.0,0.00024959,2]
[421939393,1778355044000,-893.06081706,0.00024407,2]
[421939390,1778355044000,-893.06081706,0.00024324,2]
[421939389,1778355044000,-1130.5,0.00024296,2]
[421939386,1778355044000,-181.93,0.00024126,2]
[421939387,1778355044000,-893.06081706,0.00024175,2]
[421939388,1778355044000,-893.06081706,0.00024281,2]
[421939391,1778355044000,-893.06081706,0.00024385,2]
[421939384,1778355044000,-893.06081706,0.00024082,2]
[421939383,1778355044000,-893.06081706,0.00024046,2]
[421939406,1778355044000,-215.0,0.00025,2]
[421939395,1778355044000,-308.0,0.000246,2]
[421939408,1778355044000,-154.59,0.0002529,2]
[421939417,1778355044000,-160.31,0.00026095,7]
[421939413,1778355044000,-6047.0,0.00025929,2]
[421939410,1778355044000,-570.0,0.00025521,3]
[421939439,1778355044000,-12513.60955775,0.00027397,10]
[421939438,1778355044000,-300.0,0.00027397,2]
[421939436,1778355044000,-1500.0,0.00027397,2]
[421939437,1778355044000,-219.46,0.00027397,2]
[421939435,1778355044000,-150.0,0.00027397,30]
[421939433,1778355044000,-150.43937878,0.00027297,2]
[421939434,1778355044000,-151.0,0.00027394,7]
[421939431,1778355044000,-150.0,0.00027297,2]
[421939430,1778355044000,-570.0,0.00027205,4]
[421939429,1778355044000,-1130.5,0.00026995,2]
[421939425,1778355044000,-160.37,0.00026575,30]
[421939428,1778355044000,-387.0,0.00026884,10]
[421939432,1778355044000,-150.0,0.00027297,2]
[421939426,1778355044000,-570.0,0.00026644,4]
[421939411,1778355044000,-4400.32054498,0.00025663,2]
[421939427,1778355044000,-150.0,0.00026849,2]
[421939415,1778355044000,-158.27,0.00026027,2]
[421939418,1778355044000,-160.31,0.00026164,30]
[421939416,1778355044000,-570.0,0.00026082,3]
[421939420,1778355044000,-160.31,0.00026301,7]
[421939414,1778355044000,-160.31,0.00026027,2]
[421939422,1778355044000,-374.84,0.000264,13]
[421939421,1778355044000,-160.31,0.00026369,30]
[421939424,1778355044000,-160.31,0.00026506,7]
[421939423,1778355044000,-160.31,0.00026438,2]
[421939419,1778355044000,-160.31,0.00026232,2]
[421939457,1778355046000,-200.53352621,0.000274,2]
[421939454,1778355046000,-188.03069334,0.00027399,2]
[421939459,1778355046000,-4400.32054498,0.00027427,2]
[421939458,1778355046000,-151.0,0.000274,2]
[421939461,1778355046000,-152.62,0.00025079,30]
[421939460,1778355046000,-2236.85466097,0.00027612,2]
[421939465,1778355046000,-570.0,0.00027767,5]
[421939463,1778355046000,-80.53668643,0.00027612,2]
[421939464,1778355046000,-38614.2604835,0.00027612,2]
[421939472,1778355046000,-6047.0,0.00028929,2]
[421939466,1778355046000,-1141.384674,0.00028,60]
[421939462,1778355046000,-763.0,0.00027397,10]
[421939455,1778355046000,-560.38660572,0.00027399,2]
[421939441,1778355046000,-152.62,0.00024658,2]
[421939456,1778355046000,-421.1698253,0.00027399,2]
[421939449,1778355046000,-158.27,0.00026438,2]
[421939450,1778355046000,-158.27,0.00026506,7]
[421939452,1778355046000,-304.0,0.00027397,10]
[421939448,1778355046000,-158.27,0.00026369,30]
[421939451,1778355046000,-158.3,0.00026575,30]
[421939447,1778355046000,-158.27,0.00026301,7]
[421939446,1778355046000,-158.27,0.00026232,2]
[421939444,1778355046000,-158.27,0.00026095,7]
[421939445,1778355046000,-158.27,0.00026164,30]
[421939443,1778355046000,-3539.0,0.00025929,2]
[421939442,1778355046000,-152.62,0.00024868,7]
[421939471,1778355046000,-1222.0,0.00028929,2]
[421939453,1778355046000,-8929.81044225,0.00027397,10]
[421939467,1778355046000,-150.0,0.00028192,2]
[421939499,1778355046000,-6145.04414611,0.0003013,7]
[421939468,1778355046000,-150.0,0.00028311,30]
[421939497,1778355046000,-152.62,0.0002529,2]
[421939498,1778355046000,-152.62,0.000255,7]
[421939496,1778355046000,-34665.53800272,0.0003013,7]
[421939494,1778355046000,-500.0,0.00030129,2]
[421939495,1778355046000,-250.0,0.00030129,30]
[421939492,1778355046000,-200.0,0.000301,10]
[421939493,1778355046000,-151.0,0.00030127,7]
[421939491,1778355046000,-364.17940337,0.000301,2]
[421939489,1778355046000,-462.0,0.000301,5]
[421939490,1778355046000,-160.0,0.000301,25]
[421939487,1778355046000,-700.0,0.0003007,2]
[421939488,1778355046000,-1035.52443023,0.0003007,2]
[421939483,1778355046000,-575.0,0.0003002,5]
[421939481,1778355046000,-1130.5,0.00029695,2]
[421939475,1778355046000,-4400.32054498,0.0002919,2]
[421939473,1778355046000,-1026.46,0.00028929,2]
[421939469,1778355046000,-570.0,0.00028329,6]
[421939470,1778355046000,-570.0,0.0002889,6]
[421939477,1778355046000,-198.81000001,0.00029224,30]
[421939484,1778355046000,-425.83281106,0.00030029,30]
[421939479,1778355046000,-570.0,0.00029452,7]
[421939474,1778355046000,-500.0,0.00028929,2]
[421939478,1778355046000,-7977.34356825,0.00029226,2]
[421939482,1778355046000,-570.0,0.00030014,7]
[421939480,1778355046000,-150.0,0.00029601,2]
[421939486,1778355046000,-3231.3349,0.0003003,2]
[421939485,1778355046000,-163.68337329,0.0003003,2]
[421939476,1778355046000,-364.0,0.00029224,5]
[421939506,1778355084000,999.56,0.00027389,120]
[421939507,1778355396000,-299.872,0.00019951,2]
[421939508,1778355429000,-404.0,0.00020005,2]
[421939509,1778355429000,-404.0,0.00020089,2]
[421939512,1778355429000,-240.18968716,0.00020258,2]
[421939511,1778355429000,-159.81031284,0.00020258,2]
[421939510,1778355429000,-4.0,0.00020089,2]
[421939514,1778355870000,-439.0,0.0002,2]
[421939519,1778355903000,-88.27298465,0.00020258,2]
[421939517,1778355903000,-155.99628407,0.0002,2]
[421939518,1778355903000,-214.73073128,0.0002025,2]
[421939516,1778355903000,-152.0,0.0002,2]
[421939515,1778355903000,-611.0,0.0002,2]
[421939520,1778355904000,-71.53732818,0.00020258,2]
[421939521,1778355904000,-398.0,0.00020258,2]
[421939522,1778355904000,-141.46267182,0.00020258,2]
[421939527,1778356046000,-1863.58451898,0.00020258,2]
[421939523,1778356046000,-156.0,0.0002,2]
[421939525,1778356046000,-2196.26555508,0.00020258,2]
[421939524,1778356046000,-208.0536425,0.00020254,2]
[421939526,1778356046000,-965.53552397,0.00020258,2]
[421939528,1778356046000,-255.53732818,0.00020258,2]
[421939530,1778356046000,-409.0,0.00020258,2]
[421939532,1778356046000,-398.0,0.00020258,2]
[421939533,1778356046000,-203.83355878,0.00020258,2]
[421939531,1778356046000,-401.0,0.00020258,2]
[421939529,1778356046000,-411.0,0.00020258,2]
[421939547,1778356232000,-645.55505471,0.00020357,2]
[421939539,1778356232000,-200.16644122,0.00020258,2]
[421939538,1778356232000,-213.0,0.0002,2]
[421939541,1778356232000,-1329.87782146,0.00020258,2]
[421939540,1778356232000,-398.0,0.00020258,2]
[421939542,1778356232000,-911.72705474,0.00020258,2]
[421939543,1778356232000,-258.3951238,0.00020258,2]
[421939544,1778356232000,-793.14996483,0.00020348,2]
[421939546,1778356232000,-2489.51,0.00020348,2]
[421939545,1778356232000,-1696.36003517,0.00020348,2]
[421939548,1778356232000,-500.0,0.00020357,2]
[421939551,1778356232000,-500.0,0.00020357,2]
[421939550,1778356232000,-500.0,0.00020357,2]
[421939549,1778356232000,-500.0,0.00020357,2]
[421939553,1778356232000,-481.27594598,0.00020357,2]
[421939552,1778356232000,-294.81887771,0.00020357,2]
[421939555,1778356232000,-411.0,0.00020358,2]
[421939554,1778356232000,-392.270624,0.00020357,2]
[421939556,1778356232000,-239.898,0.00020358,2]
[421939562,1778356232000,-3213.21263462,0.00020358,2]
[421939558,1778356232000,-150.0,0.00020358,2]
[421939560,1778356232000,-3659.67449884,0.00020358,2]
[421939557,1778356232000,-163.31,0.00020358,2]
[421939625,1778356243000,-402.45793,0.00020258,2]
[421939637,1778356247000,-442.3856535,0.00020258,2]
[421939638,1778356247000,-105.0543465,0.00020358,2]
[421940011,1778356345000,-2214.1778,0.00020258,2]
[421940013,1778356379000,-403.0,0.00020258,2]
[421940012,1778356379000,-403.0,0.00020258,2]
[421940014,1778356379000,-403.0,0.00020258,2]
[421940016,1778356823000,-771.13121284,0.000201,12]
[421940018,1778356857000,-439.0,0.0002,2]
[421940019,1778356857000,-1577.23477613,0.000201,12]
[421940017,1778356857000,-2016.23477613,0.000201,12]
[421940021,1778356858000,-1865.16862435,0.000201,12]
[421940020,1778356858000,-151.06615178,0.000201,12]
[421940026,1778357296000,-251.893,0.00019853,2]
[421940027,1778357329000,-641.0,0.0002,2]
[421940030,1778357330000,-64.54887587,0.000201,12]
[421940028,1778357330000,-157.0,0.0002,2]
[421940029,1778357330000,-213.0,0.0002,2]
[421940033,1778357330000,-418.26870563,0.000201,12]
[421940032,1778357330000,-33.25328576,0.000201,12]
[421940034,1778357330000,-189.47800861,0.000201,12]
[421940031,1778357330000,-206.45112413,0.000201,12]
[421940045,1778357431000,-609.79090635,0.00020158,2]
[421940044,1778357431000,-40.11247269,0.000201,12]
[421940066,1778357437000,-487.56299906,0.00020158,2]
[421940116,1778357442000,-282.21494815,0.00020158,2]
[421940140,1778357443000,-439.0,0.00021,2]
[421940149,1778357443000,-439.0,0.00023,2]
[421940147,1778357443000,-213.0,0.00022,2]
[421940142,1778357443000,-157.0,0.00021,2]
[421940146,1778357443000,-157.0,0.00022,2]
[421940143,1778357443000,-213.0,0.00021,2]
[421940145,1778357443000,-641.0,0.00022,2]
[421940150,1778357443000,-641.0,0.00023,2]
[421940148,1778357443000,-1712.63339811,0.00022129,2]
[421940144,1778357443000,-439.0,0.00022,2]
[421940151,1778357443000,-157.0,0.00023,2]
[421940158,1778357443000,-1712.63339811,0.00024101,2]
[421940153,1778357443000,-364.0,0.000232,2]
[421940155,1778357443000,-439.0,0.00024,2]
[421940154,1778357443000,-400.0,0.00023977,2]
[421940161,1778357443000,-158.0,0.00024618,5]
[421940157,1778357443000,-213.0,0.00024,2]
[421940156,1778357443000,-641.0,0.00024,2]
[421940159,1778357443000,-524.0,0.00024397,2]
[421940162,1778357443000,-150.0,0.00024619,2]
[421940163,1778357443000,-181.93,0.00024631,2]
[421940152,1778357443000,-213.0,0.00023,2]
[421940141,1778357443000,-641.0,0.00021,2]
[421940124,1778357443000,-412.0,0.00020258,2]
[421940139,1778357443000,-397.0,0.00020509,2]
[421940117,1778357443000,-333.06454461,0.00020158,2]
[421940119,1778357443000,-1713.2459674,0.00020255,2]
[421940118,1778357443000,-1329.8779,0.00020158,2]
[421940120,1778357443000,-150.0,0.00020257,2]
[421940122,1778357443000,-408.0,0.00020258,2]
[421940164,1778357443000,-1000.0,0.00024658,2]
[421940121,1778357443000,-403.0,0.00020258,2]
[421940123,1778357443000,-408.0,0.00020258,2]
[421940125,1778357443000,-410.0,0.00020258,2]
[421940127,1778357443000,-404.0,0.00020258,2]
[421940126,1778357443000,-406.0,0.00020258,2]
[421940128,1778357443000,-4702.3004301,0.00020289,2]
[421940129,1778357443000,-1549.6787041,0.00020292,2]
[421940130,1778357443000,-407.0,0.00020292,2]
[421940135,1778357443000,-409.0,0.00020358,2]
[421940132,1778357443000,-241.36707265,0.00020358,2]
[421940131,1778357443000,-399.0,0.00020292,2]
[421940136,1778357443000,-407.0,0.00020509,2]
[421940134,1778357443000,-402.0,0.00020358,2]
[421940133,1778357443000,-402.0,0.00020358,2]
[421940137,1778357443000,-399.0,0.00020509,2]
[421940138,1778357443000,-408.0,0.00020509,2]
[421940165,1778357443000,-458.37,0.00024658,2]
[421940160,1778357443000,-150.0,0.0002445,21]
[421940175,1778357443000,-15181.9247356,0.0002491,2]
[421940200,1778357443000,-524.0,0.00025521,3]
[421940207,1778357443000,-1712.63339811,0.00026072,2]
[421940205,1778357443000,-164.8,0.00026052,2]
[421940202,1778357443000,-429.68,0.00025667,7]
[421940203,1778357443000,-429.68,0.00025811,30]
[421940206,1778357443000,-164.48,0.00026054,2]
[421940204,1778357443000,-429.68,0.00025955,2]
[421940209,1778357443000,-286.45,0.00026095,2]
[421940208,1778357443000,-524.0,0.00026082,3]
[421940212,1778357443000,-164.8,0.00026139,7]
[421940201,1778357443000,-429.68,0.00025523,2]
[421940211,1778357443000,-286.45,0.0002612,7]
[421940215,1778357443000,-286.45,0.0002617,2]
[421940214,1778357443000,-286.45,0.00026145,30]
[421940216,1778357443000,-286.45,0.00026196,7]
[421940218,1778357443000,-164.8,0.00026226,30]
[421940219,1778357443000,-164.48,0.00026227,30]
[421940217,1778357443000,-286.45,0.00026221,30]
[421940220,1778357443000,-429.68,0.00026243,30]
[421940221,1778357443000,-286.45,0.00026246,2]
[421940222,1778357443000,-286.45,0.00026271,7]
[421940172,1778357443000,-373.524,0.0002482,2]
[421940213,1778357443000,-164.48,0.0002614,7]
[421940198,1778357443000,-157.0,0.00025479,2]
[421940210,1778357443000,-429.68,0.00026099,7]
[421940199,1778357443000,-157.31,0.00025479,2]
[421940169,1778357443000,-429.68,0.00024802,7]
[421940196,1778357443000,-429.68,0.00025378,30]
[421940173,1778357443000,-163.68337326,0.00024859,2]
[421940171,1778357443000,-6047.0,0.00024805,2]
[421940170,1778357443000,-928.0,0.00024805,2]
[421940167,1778357443000,-157.0,0.00024658,2]
[421940166,1778357443000,-429.68,0.00024658,2]
[421940179,1778357443000,-157.31,0.00024931,7]
[421940181,1778357443000,-429.68,0.00024946,30]
[421940177,1778357443000,-157.0,0.00024931,7]
[421940168,1778357443000,-157.31,0.00024658,2]
[421940193,1778357443000,-157.0,0.00025205,30]
[421940187,1778357443000,-646.72680202,0.00025,2]
[421940189,1778357443000,-218.0,0.00025,2]
[421940195,1778357443000,-429.68,0.00025234,7]
[421940192,1778357443000,-5000.0,0.00025195,2]
[421940185,1778357443000,-451.0,0.00025,2]
[421940190,1778357443000,-429.68,0.0002509,2]
[421940197,1778357443000,-156.94,0.00025479,2]
[421940194,1778357443000,-157.31,0.00025205,30]
[421940191,1778357443000,-226.1,0.00025135,2]
[421940183,1778357443000,-524.0,0.00024959,2]
[421940255,1778357444000,-524.0,0.00027205,4]
[421940260,1778357444000,-351.51,0.000273,2]
[421940265,1778357444000,-150.0,0.00027397,2]
[421940263,1778357444000,-150.0,0.00027397,2]
[421940261,1778357444000,-429.71,0.00027397,7]
[421940254,1778357444000,-429.68,0.00027108,30]
[421940258,1778357444000,-3641.071541,0.00027269,2]
[421940257,1778357444000,-60670.4970574,0.00027269,2]
[421940259,1778357444000,-151.0,0.00027269,2]
[421940262,1778357444000,-151.0,0.00027397,2]
[421940256,1778357444000,-429.68,0.00027253,2]
[421940253,1778357444000,-429.68,0.00026964,7]
[421940266,1778357444000,-151.0,0.00027397,2]
[421940276,1778357444000,-151.0,0.00027397,2]
[421940272,1778357444000,-300.0,0.00027397,2]
[421940268,1778357444000,-175.56,0.00027397,2]
[421940269,1778357444000,-409.0,0.00027397,2]
[421940271,1778357444000,-151.0,0.00027397,2]
[421940270,1778357444000,-151.0,0.00027397,2]
[421940275,1778357444000,-151.0,0.00027397,2]
[421940274,1778357444000,-273.119848,0.00027397,2]
[421940273,1778357444000,-151.0,0.00027397,2]
[421940277,1778357444000,-151.0,0.00027397,2]
[421940280,1778357444000,-204.977196,0.00027397,2]
[421940281,1778357444000,-458.37,0.00027397,2]